bitfinex/quotes_BTCUSD_20251117
["timestamp","ask_amount","ask_price","bid_price","bid_amount"]
[1763360697247,0.07110561,95197.0,95196.0,0.002]
[1763360698028,0.07110561,95197.0,95196.0,0.001]
[1763360698230,0.07940517,95197.0,95194.0,0.1]
[1763360698395,0.03952,95196.0,95194.0,0.1]
[1763360698596,0.01513,95195.0,95194.0,0.1]
[1763360698816,0.07110684,95195.0,95194.0,0.1]
[1763360699936,0.07110684,95195.0,95194.0,0.102]
[1763360702513,0.04671684,95195.0,95194.0,0.102]
[1763360702751,0.07110684,95195.0,95194.0,0.102]
[1763360705405,0.47830684,95195.0,95194.0,0.102]
[1763360708963,0.49047684,95195.0,95194.0,0.102]
[1763360709162,0.46073052,95195.0,95194.0,0.102]
[1763360709375,0.46073052,95195.0,95194.0,0.002]
[1763360709585,0.02999997,95180.0,95170.0,0.0004]
[1763360709790,0.02619,95172.0,95170.0,0.0004]
[1763360710218,0.06106783,95172.0,95170.0,0.0004]
[1763360710828,0.06106783,95172.0,95171.0,0.00213311]
[1763360715382,0.46830783,95172.0,95171.0,0.00213311]
[1763360715586,0.55254783,95172.0,95171.0,0.00213311]
[1763360718076,0.38406783,95172.0,95171.0,0.00213311]
[1763360720271,0.37779283,95172.0,95171.0,0.00213311]
[1763360722848,0.39428842,95172.0,95171.0,0.00213311]
[1763360725260,0.36989842,95172.0,95171.0,0.00213311]
[1763360725465,0.53837842,95172.0,95171.0,0.00213311]
[1763360725664,0.47851842,95172.0,95171.0,0.00213311]
[1763360726067,0.52758726,95172.0,95171.0,0.00213311]
[1763360726224,0.47851842,95172.0,95171.0,0.00213311]
[1763360726959,0.45413842,95172.0,95171.0,0.00213311]
[1763360727255,0.34370842,95172.0,95171.0,0.00213311]
[1763360727598,0.32721283,95172.0,95171.0,0.00213311]
[1763360728458,0.00421283,95172.0,95171.0,0.04367311]
[1763360728664,0.35299997,95180.0,95171.0,0.01870311]
[1763360728818,0.33299999,95180.0,95179.0,0.10510881]
[1763360729408,0.36459285,95180.0,95179.0,0.10510881]
[1763360731167,0.07187286,95180.0,95179.0,0.10510881]
[1763360732132,0.04749286,95180.0,95179.0,0.10510881]
[1763360732781,0.03159286,95180.0,95179.0,0.10510881]
[1763360734204,0.02999997,95200.0,95179.0,0.14664881]
[1763360734418,0.27543554,95190.0,95180.0,0.02497]
[1763360734681,0.35054355,95189.0,95179.0,0.10510881]
[1763360735213,0.02438,95188.0,95179.0,0.10510881]
[1763360735409,0.40724,95187.0,95179.0,0.10510881]
[1763360735816,0.40724,95187.0,95179.0,0.10610881]
[1763360736017,0.40724,95187.0,95179.0,0.10510881]
[1763360736371,0.51090938,95187.0,95179.0,0.10510881]
[1763360736547,0.40724,95187.0,95179.0,0.10510881]
[1763360736746,0.40724,95187.0,95179.0,0.10610881]
[1763360737127,0.40724,95187.0,95179.0,0.10510881]
[1763360740102,0.43882987,95187.0,95179.0,0.10510881]
[1763360740673,0.0159,95180.0,95179.0,0.10510881]
[1763360741119,0.0159,95180.0,95171.0,0.00213311]
[1763360741120,0.07027997,95180.0,95171.0,0.00213311]
[1763360741260,0.34738,95180.0,95179.0,0.10510881]
[1763360741458,0.34738,95180.0,95171.0,0.00213311]
[1763360741459,0.02788,95172.0,95171.0,0.00213311]
[1763360741865,0.05226,95172.0,95171.0,0.00213311]
[1763360742060,0.08385416,95172.0,95171.0,0.00213311]
[1763360742958,0.40685416,95172.0,95171.0,0.00213311]
[1763360743161,0.40685416,95172.0,95171.0,0.00313311]
[1763360743357,0.40685416,95172.0,95171.0,0.00413311]
[1763360745371,0.38247416,95172.0,95171.0,0.00413311]
[1763360745526,0.52307416,95172.0,95171.0,0.00413311]
[1763360746356,0.323,95172.0,95171.0,0.00413311]
[1763360746880,0.35163265,95172.0,95171.0,0.00413311]
[1763360748914,0.323,95172.0,95171.0,0.00413311]
[1763360750131,0.02999997,95180.0,95171.0,0.04398311]
[1763360750404,0.24543557,95181.0,95179.0,0.11118881]
[1763360750607,0.323,95180.0,95179.0,0.11118881]
[1763360751698,0.01142,95183.0,95179.0,0.11118881]
[1763360755744,0.08424,95182.0,95179.0,0.11118881]
[1763360757415,0.01142,95183.0,95179.0,0.11318881]
[1763360758258,0.01142,95183.0,95179.0,0.11218881]
[1763360758785,0.323,95189.0,95182.0,0.01595]
[1763360759954,0.02999997,95190.0,95182.0,0.01595]
[1763360760165,0.02999997,95190.0,95183.0,0.1]
[1763360760363,0.52087111,95200.0,95189.0,0.02496]
[1763360760537,0.323,95199.0,95197.0,0.10510881]
[1763360760936,0.03158824,95204.0,95183.0,0.1]
[1763360760937,0.01999998,95190.0,95183.0,0.1]
[1763360761135,0.02742,95184.0,95182.0,0.002]
[1763360761342,0.016,95183.0,95182.0,0.002]
[1763360761585,0.01142,95184.0,95182.0,0.001]
[1763360761734,0.01142,95184.0,95179.0,0.10510881]
[1763360761937,0.02999997,95190.0,95182.0,0.001]
[1763360762155,0.323,95189.0,95182.0,0.001]
[1763360762377,0.323,95189.0,95180.0,0.1]
[1763360762575,0.323,95189.0,95182.0,0.001]
[1763360762802,0.323,95189.0,95180.0,0.1]
[1763360763211,0.27543554,95190.0,95180.0,0.1]
[1763360763212,0.01198,95198.0,95188.0,0.02496]
[1763360763409,0.01198,95198.0,95197.0,0.10510881]
[1763360765508,0.41922,95198.0,95197.0,0.10510881]
[1763360766116,0.323,95198.0,95197.0,0.10510881]
[1763360766253,0.40724,95198.0,95197.0,0.10510881]
[1763360768236,0.08424,95198.0,95197.0,0.10510881]
[1763360768639,0.323,95200.0,95197.0,0.12105881]
[1763360768884,0.35722921,95210.0,95199.0,0.01595]
[1763360769280,0.323,95209.0,95199.0,0.01595]
[1763360770521,0.323,95209.0,95197.0,0.10510881]
[1763360772601,0.02999997,95210.0,95197.0,0.10510881]
[1763360772812,0.323,95209.0,95197.0,0.10510881]
[1763360773019,0.16361462,95207.0,95197.0,0.10510881]
[1763360773432,0.03552,95206.0,95197.0,0.10510881]
[1763360774202,0.01142,95206.0,95197.0,0.10510881]
[1763360774402,0.0241,95205.0,95197.0,0.10510881]
[1763360775447,0.0842,95204.0,95197.0,0.10510881]
[1763360775609,0.02815,95198.0,95197.0,0.10510881]
[1763360776284,0.05207,95198.0,95197.0,0.10510881]
[1763360777210,0.065697,95198.0,95188.0,0.1]
[1763360777414,0.02765,95189.0,95182.0,0.10510881]
[1763360777659,0.01621,95183.0,95182.0,0.10510881]
[1763360778847,0.02496,95188.0,95182.0,0.10610881]
[1763360779070,0.01144,95189.0,95182.0,0.10510881]
[1763360779874,0.02999997,95190.0,95182.0,0.10510881]
[1763360780376,0.02999997,95190.0,95182.0,0.10610881]
[1763360780577,0.02999997,95190.0,95182.0,0.10710881]
[1763360780777,0.02999997,95190.0,95182.0,0.10510881]
[1763360781533,0.323,95191.0,95189.0,0.00755]
[1763360783043,0.33722923,95200.0,95190.0,0.03911]
[1763360783244,0.65022924,95200.0,95199.0,0.10510881]
[1763360783450,0.323,95200.0,95199.0,0.10510881]
[1763360785573,0.4072,95200.0,95199.0,0.10510881]
[1763360786197,0.323,95200.0,95199.0,0.12101881]
[1763360786407,0.323,95200.0,95199.0,0.14421881]
[1763360786636,0.323,95200.0,95199.0,0.14521881]
[1763360786839,0.323,95208.0,95199.0,0.14621881]
[1763360787055,0.323,95208.0,95207.0,0.02199]
[1763360787456,0.323,95208.0,95207.0,0.04519]
[1763360787714,0.323,95208.0,95207.0,0.02199]
[1763360788118,0.32344326,95208.0,95207.0,0.02199]
[1763360788547,0.00044326,95208.0,95207.0,0.02199]
[1763360788751,0.00044326,95208.0,95201.0,0.00608]
[1763360790589,0.01144,95207.0,95199.0,0.10510881]
[1763360790790,0.0364,95207.0,95199.0,0.10510881]
[1763360792375,0.00044326,95208.0,95199.0,0.10510881]
[1763360793256,0.00044326,95208.0,95199.0,0.12830881]
[1763360793865,0.00044326,95208.0,95200.0,0.0232]
[1763360794850,0.00044326,95208.0,95199.0,0.10510881]
[1763360795464,0.0842,95207.0,95199.0,0.10510881]
[1763360795666,0.0842,95206.0,95199.0,0.10510881]
[1763360796845,0.0842,95206.0,95205.0,0.01591]
[1763360798456,0.0842,95206.0,95199.0,0.10510881]
[1763360800950,0.00044326,95208.0,95199.0,0.10510881]
[1763360801353,0.07329451,95208.0,95199.0,0.10510881]
[1763360801774,0.00044326,95208.0,95199.0,0.10510881]
[1763360803028,0.02496,95207.0,95199.0,0.10510881]
[1763360803753,0.01621,95200.0,95199.0,0.10510881]
[1763360803955,0.02496,95207.0,95199.0,0.10510881]
[1763360805509,0.1684,95206.0,95199.0,0.10510881]
[1763360806540,0.19126,95206.0,95199.0,0.10510881]
[1763360806745,0.03158418,95205.0,95199.0,0.10510881]
[1763360807009,0.10366938,95204.0,95199.0,0.10510881]
[1763360807213,0.03158418,95205.0,95199.0,0.10510881]
[1763360808240,0.05444418,95205.0,95199.0,0.10510881]
[1763360809457,0.01504,95200.0,95199.0,0.10510881]
[1763360809859,0.0379,95200.0,95199.0,0.10510881]
[1763360810979,0.0379,95200.0,95199.0,0.10610881]
[1763360812206,0.03158418,95205.0,95199.0,0.10510881]
[1763360812407,0.03158418,95205.0,95199.0,0.10610881]
[1763360812940,0.03158418,95205.0,95199.0,0.10510881]
[1763360813155,0.03158418,95205.0,95204.0,0.00608]
[1763360813328,0.03158418,95205.0,95204.0,0.02166]
[1763360813907,0.03158418,95205.0,95204.0,0.04511]
[1763360814514,0.03158418,95205.0,95204.0,0.02166]
[1763360815301,0.03158418,95205.0,95204.0,0.01166]
[1763360815535,0.11578418,95205.0,95204.0,0.03568188]
[1763360815917,0.11578418,95205.0,95204.0,0.01166]
[1763360816152,0.11578418,95205.0,95204.0,0.01266]
[1763360816654,0.11578418,95205.0,95204.0,0.01366]
[1763360817816,0.11578418,95205.0,95204.0,0.03384]
[1763360818015,0.03158418,95205.0,95204.0,0.01366]
[1763360819849,0.03158418,95205.0,95204.0,0.002]
[1763360820199,0.03778692,95205.0,95204.0,0.002]
[1763360820618,0.03158418,95205.0,95204.0,0.002]
[1763360824758,0.00044326,95208.0,95204.0,0.03776]
[1763360824944,0.00044326,95208.0,95207.0,0.01558]
[1763360825339,0.03202461,95208.0,95204.0,0.002]
[1763360825632,0.0842,95207.0,95204.0,0.001]
[1763360825780,0.0842,95207.0,95200.0,0.02018]
[1763360825981,0.11578135,95207.0,95200.0,0.02018]
[1763360826445,0.0842,95207.0,95199.0,0.20510881]
[1763360826651,0.03158135,95206.0,95199.0,0.20510881]
[1763360826852,0.03158135,95206.0,95204.0,0.001]
[1763360826980,0.1100252,95205.0,95204.0,0.001]
[1763360827177,0.1100252,95205.0,95199.0,0.10510881]
[1763360827374,0.1100252,95205.0,95200.0,0.002]
[1763360827574,0.14160765,95205.0,95200.0,0.002]
[1763360827909,0.1100252,95205.0,95200.0,0.001]
[1763360828112,0.13525183,95204.0,95200.0,0.001]
[1763360828526,0.10366938,95204.0,95200.0,0.001]
[1763360828729,0.02286,95203.0,95199.0,0.10510881]
[1763360828927,0.01504,95200.0,95199.0,0.10510881]
[1763360829950,0.10366938,95204.0,95199.0,0.10510881]
[1763360830205,0.03158245,95205.0,95199.0,0.10610881]
[1763360831425,0.07671191,95205.0,95199.0,0.10610881]
[1763360831620,0.07671191,95205.0,95199.0,0.10510881]
[1763360832479,0.03158245,95205.0,95199.0,0.10510881]
[1763360834803,0.03158245,95205.0,95199.0,0.22528881]
[1763360835045,0.03158245,95205.0,95199.0,0.22628881]
[1763360835243,0.03158245,95205.0,95199.0,0.22728881]
[1763360835397,0.03158245,95205.0,95199.0,0.20710881]
[1763360835597,0.0842,95204.0,95199.0,0.20710881]
[1763360836200,0.0842,95203.0,95199.0,0.20710881]
[1763360836406,0.0842,95203.0,95199.0,0.20510881]
[1763360836606,0.0842,95203.0,95199.0,0.20610881]
[1763360836943,0.03158245,95205.0,95199.0,0.20710881]
[1763360837133,0.03158245,95205.0,95199.0,0.22728881]
[1763360837330,0.00044326,95208.0,95199.0,0.22628881]
[1763360837686,0.03158331,95207.0,95199.0,0.22628881]
[1763360838120,0.03158331,95207.0,95199.0,0.22728881]
[1763360838330,0.03158331,95207.0,95199.0,0.22628881]
[1763360838539,0.03158331,95207.0,95199.0,0.22528881]
[1763360838738,0.03158331,95207.0,95199.0,0.22628881]
[1763360840363,0.03158331,95207.0,95206.0,0.01663]
[1763360841465,0.03158331,95207.0,95206.0,0.01763]
[1763360841999,0.03158331,95207.0,95206.0,0.01863]
[1763360845566,0.11578331,95207.0,95206.0,0.01863]
[1763360847439,0.11578331,95207.0,95206.0,0.002]
[1763360847912,0.03158331,95207.0,95206.0,0.01863]
[1763360848476,0.03158331,95207.0,95206.0,0.002]
[1763360850538,0.03158331,95207.0,95206.0,0.03881]
[1763360850740,0.00044326,95208.0,95206.0,0.03881]
[1763360850980,0.00044326,95208.0,95207.0,0.03681]
[1763360854307,0.00044326,95208.0,95207.0,0.205476]
[1763360854510,0.00044326,95208.0,95207.0,0.18611]
[1763360854711,0.00044326,95208.0,95207.0,0.28611]
[1763360855024,0.00044326,95208.0,95207.0,0.38711]
[1763360855233,0.00044326,95208.0,95207.0,0.38911]
[1763360855570,0.08464326,95208.0,95207.0,0.428776]
[1763360855788,0.08464326,95208.0,95207.0,0.426776]
[1763360855984,0.08426649,95208.0,95207.0,0.426776]
[1763360856236,0.0842,95208.0,95207.0,0.391966]
[1763360856516,0.0842,95208.0,95207.0,0.405596]
[1763360856746,0.0842,95208.0,95207.0,0.409596]
[1763360856936,0.0842,95208.0,95207.0,0.429776]
[1763360857168,0.0842,95208.0,95207.0,0.427776]
[1763360857523,0.0842,95208.0,95207.0,0.429776]
[1763360857926,0.0842,95208.0,95207.0,0.427776]
[1763360858355,0.0842,95208.0,95207.0,0.429776]
[1763360864748,0.0842,95208.0,95207.0,0.39011]
[1763360865123,0.0842,95208.0,95207.0,0.36993]
[1763360865326,0.0842,95208.0,95207.0,0.39011]
[1763360866144,0.0842,95208.0,95207.0,0.3533]
[1763360866345,0.0842,95208.0,95207.0,0.36968]
[1763360866733,0.0842,95208.0,95207.0,0.36768]
[1763360867333,0.0842,95208.0,95207.0,0.38786]
[1763360867533,0.0842,95208.0,95207.0,0.38886]
[1763360867769,0.0842,95208.0,95207.0,0.428501]
[1763360867972,0.0842,95208.0,95207.0,0.426501]
[1763360868390,0.0842,95208.0,95207.0,0.427501]
[1763360869355,0.0842,95208.0,95207.0,0.426501]
[1763360869784,0.0842,95208.0,95207.0,0.427501]
[1763360870247,0.0842,95208.0,95207.0,0.278201]
[1763360871618,0.0842,95208.0,95207.0,0.23856]
[1763360873397,0.03157893,95216.0,95207.0,0.23856]
[1763360873624,0.0842,95208.0,95207.0,0.24541874]
[1763360873794,4.652e-05,95216.0,95215.0,0.11142881]
[1763360874095,0.08424652,95216.0,95215.0,0.12780881]
[1763360874317,0.08424652,95216.0,95215.0,0.16341969]
[1763360874916,0.08424652,95216.0,95215.0,0.26341969]
[1763360875094,0.08424652,95216.0,95215.0,0.36441969]
[1763360875500,0.08424652,95216.0,95215.0,0.36341969]
[1763360875709,0.0842,95216.0,95215.0,0.36441969]
[1763360875909,0.0842,95216.0,95215.0,0.51371969]
[1763360876260,0.0842,95216.0,95215.0,0.51471969]
[1763360876410,0.0842,95222.0,95215.0,0.51471969]
[1763360876594,0.0842,95222.0,95221.0,0.01638]
[1763360876791,0.1684,95222.0,95221.0,0.01638]
[1763360877183,0.0842,95222.0,95221.0,0.01638]
[1763360877384,0.1684,95222.0,95221.0,0.01638]
[1763360877592,0.1684,95222.0,95221.0,0.01738]
[1763360877816,0.1684,95222.0,95221.0,0.11738]
[1763360878016,0.1684,95222.0,95221.0,0.13856]
[1763360879168,0.1684,95222.0,95221.0,0.11838]
[1763360879978,0.1684,95222.0,95221.0,0.102]
[1763360883735,0.1684,95222.0,95221.0,0.16990288]
[1763360886492,0.0842,95222.0,95221.0,0.13856]
[1763360886650,0.1684,95222.0,95221.0,0.13856]
[1763360887070,0.0842,95222.0,95221.0,0.13856]
[1763360887274,0.16836,95222.0,95221.0,0.13856]
[1763360893711,0.16836,95222.0,95221.0,0.28786]
[1763360893912,0.16836,95222.0,95221.0,0.33778888]
[1763360897229,0.08416,95222.0,95221.0,0.33778888]
[1763360908674,0.03157075,95238.0,95221.0,0.33778888]
[1763360908875,0.08416,95237.0,95226.0,0.00693]
[1763360909033,0.08416,95237.0,95236.0,0.10510881]
[1763360909235,0.08416,95237.0,95236.0,0.12112881]
[1763360909423,0.08416,95237.0,95236.0,0.14130881]
[1763360910061,0.08416,95237.0,95236.0,0.14230881]
[1763360911223,0.08416,95237.0,95236.0,0.24330881]
[1763360911433,0.08416,95237.0,95236.0,0.26864869]
[1763360925696,0.08416,95237.0,95236.0,0.24330881]
[1763360926448,0.08416,95237.0,95236.0,0.22312881]
[1763360926656,0.08416,95237.0,95236.0,0.10710881]
[1763360928582,0.08416,95237.0,95236.0,0.10510881]
[1763360928862,0.08416,95237.0,95236.0,0.10710881]
[1763360929295,0.13703,95237.0,95236.0,0.002]
[1763360929699,0.08444387,95237.0,95236.0,0.002]
[1763360930306,0.08444387,95237.0,95236.0,0.001]
[1763360930646,0.05952387,95237.0,95236.0,0.001]
[1763360930850,0.08444387,95237.0,95236.0,0.001]
[1763360931045,0.08444387,95237.0,95236.0,0.101]
[1763360931281,0.04361387,95237.0,95236.0,0.101]
[1763360932156,0.04361387,95237.0,95236.0,0.1]
[1763360932486,0.04361387,95237.0,95236.0,0.002]
[1763360932858,0.03157387,95237.0,95236.0,0.002]
[1763360933051,0.03157387,95237.0,95236.0,0.001]
[1763360933479,0.03157387,95237.0,95236.0,0.101]
[1763360933679,0.01204,95244.0,95236.0,0.12463788]
[1763360934005,0.03157228,95243.0,95236.0,0.12463788]
[1763360935127,0.03157228,95243.0,95238.0,0.1]
[1763360935485,0.08416,95242.0,95238.0,0.1]
[1763360936266,0.03157228,95241.0,95238.0,0.1]
[1763360936504,0.03157228,95241.0,95238.0,0.101]
[1763360936715,0.03157228,95241.0,95238.0,0.1]
[1763360937770,0.03157228,95241.0,95238.0,0.101]
[1763360938504,0.03157228,95241.0,95238.0,0.1]
[1763360938714,0.03157228,95241.0,95238.0,0.102]
[1763360939919,0.03157228,95241.0,95239.0,0.02171988]
[1763360940246,0.03157228,95241.0,95238.0,0.102]
[1763360940787,0.03157228,95241.0,95238.0,0.101]
[1763360940991,0.03157228,95241.0,95239.0,0.001]
[1763360941619,0.03157228,95241.0,95238.0,0.101]
[1763360942264,0.03157228,95241.0,95239.0,0.001]
[1763360942445,0.03157228,95241.0,95238.0,0.101]
[1763360942864,0.03157228,95241.0,95238.0,0.102]
[1763360943064,0.03157228,95241.0,95238.0,0.101]
[1763360943262,0.01204,95239.0,95238.0,0.101]
[1763360943432,0.02795,95239.0,95238.0,0.001]
[1763360943888,0.05952225,95239.0,95235.0,0.10510881]
[1763360944340,0.01204,95239.0,95235.0,0.10510881]
[1763360944541,0.03157225,95238.0,95235.0,0.10510881]
[1763360944744,0.03157225,95238.0,95235.0,0.12662869]
[1763360945353,0.03157225,95238.0,95235.0,0.22662869]
[1763360945555,0.08416,95237.0,95235.0,0.22862869]
[1763360945910,0.323,95244.0,95237.0,0.01537]
[1763360946124,0.323,95249.0,95243.0,0.01537]
[1763360946267,0.03156783,95248.0,95246.0,0.02546]
[1763360946454,0.16844114,95247.0,95246.0,0.02546]
[1763360946656,0.16844114,95247.0,95246.0,0.04564]
[1763360949692,0.08428114,95247.0,95246.0,0.23835874]
[1763360949897,0.25512715,95270.0,95247.0,0.04341874]
[1763360950096,0.82325431,95270.0,95269.0,0.11519881]
[1763360950335,0.03155996,95273.0,95269.0,0.13056881]
[1763360950522,0.03168108,95273.0,95272.0,0.01537]
[1763360950722,0.00012112,95273.0,95272.0,0.01537]
[1763360950940,0.00012112,95273.0,95270.0,0.03323688]
[1763360950941,0.00012112,95273.0,95270.0,0.01305688]
[1763360951706,0.00012112,95273.0,95272.0,0.001]
[1763360952110,0.00012112,95273.0,95270.0,0.01305688]
[1763360952312,0.00012112,95273.0,95270.0,0.01405688]
[1763360952712,0.00012112,95273.0,95270.0,0.01305688]
[1763360952912,0.00012112,95273.0,95272.0,0.001]
[1763360953128,0.00012112,95273.0,95272.0,0.002]
[1763360953567,0.00012112,95273.0,95272.0,0.001]
[1763360954234,0.00012112,95273.0,95270.0,0.001]
[1763360954445,0.00012112,95273.0,95269.0,0.21519881]
[1763360954648,0.01591,95270.0,95267.0,0.1]
[1763360954854,0.01591,95268.0,95264.0,0.1]
[1763360955054,0.01204,95268.0,95264.0,0.1]
[1763360955263,0.01591,95265.0,95264.0,0.1]
[1763360955462,0.02795,95265.0,95264.0,0.1]
[1763360955614,0.13493,95265.0,95264.0,0.1]
[1763360955814,0.05077,95265.0,95264.0,0.1]
[1763360956025,0.05957132,95265.0,95264.0,0.001]
[1763360956438,0.05077,95265.0,95264.0,0.001]
[1763360956669,0.08233763,95265.0,95264.0,0.001]
[1763360957212,0.08233763,95265.0,95251.0,0.10510881]
[1763360957419,0.0285,95252.0,95251.0,0.10510881]
[1763360957812,0.05256,95252.0,95251.0,0.10510881]
[1763360958016,0.08412763,95252.0,95251.0,0.10510881]
[1763360958613,0.08412763,95252.0,95251.0,0.10610881]
[1763360959246,0.09254039,95252.0,95251.0,0.10610881]
[1763360959453,0.09254039,95252.0,95251.0,0.002]
[1763360959905,0.08412763,95252.0,95251.0,0.002]
[1763360960090,0.08412763,95252.0,95251.0,0.001]
[1763360960361,0.08412763,95252.0,95245.0,0.1]
[1763360960547,0.0285,95246.0,95245.0,0.1]
[1763360960999,0.05256,95246.0,95245.0,0.1]
[1763360961201,0.08412975,95246.0,95245.0,0.1]
[1763360961875,0.08412975,95246.0,95245.0,0.101]
[1763360962623,0.06006975,95246.0,95245.0,0.1111]
[1763360963037,0.06006975,95246.0,95245.0,0.102]
[1763360963266,0.08412975,95246.0,95245.0,0.102]
[1763360963476,0.06006975,95246.0,95245.0,0.101]
[1763360963839,0.08412975,95246.0,95245.0,0.101]
[1763360964407,0.08412975,95246.0,95245.0,0.102]
[1763360964607,0.04359975,95246.0,95245.0,0.102]
[1763360964814,0.08412975,95246.0,95245.0,0.102]
[1763360965243,0.06006975,95246.0,95245.0,0.102]
[1763360965670,0.14422975,95246.0,95245.0,0.1]
[1763360965871,0.16828975,95246.0,95245.0,0.102]
[1763360966090,0.14422975,95246.0,95245.0,0.102]
[1763360966620,0.16828975,95246.0,95245.0,0.102]
[1763360967481,0.14422975,95246.0,95245.0,0.102]
[1763360968290,0.03156975,95246.0,95245.0,0.102]
[1763360968451,0.04803975,95246.0,95245.0,0.102]
[1763360969074,0.03156975,95246.0,95245.0,0.1]
[1763360969319,0.03156975,95246.0,95245.0,0.101]
[1763360971181,0.03156975,95246.0,95245.0,0.102]
[1763360975460,0.43872975,95246.0,95245.0,0.102]
[1763360983171,0.35456975,95246.0,95245.0,0.102]
[1763360985395,0.43872975,95246.0,95245.0,0.102]
[1763360986669,0.45476975,95246.0,95245.0,0.102]
[1763360986819,0.47942975,95246.0,95245.0,0.102]
[1763360987844,0.44786,95246.0,95245.0,0.102]
[1763360989051,0.3637,95246.0,95245.0,0.102]
[1763360990382,0.33904,95246.0,95245.0,0.102]
[1763360990576,0.3637,95246.0,95245.0,0.102]
[1763360992630,0.33904,95246.0,95245.0,0.102]
[1763360995546,0.4232,95246.0,95245.0,0.102]
[1763360995979,0.40716,95246.0,95245.0,0.102]
[1763360999929,0.44786,95246.0,95245.0,0.102]
[1763361000321,0.4232,95246.0,95245.0,0.102]
[1763361000618,0.44786,95246.0,95245.0,0.102]
[1763361000780,0.40716,95246.0,95245.0,0.102]
[1763361001203,0.3637,95246.0,95245.0,0.102]
[1763361001411,0.33904,95246.0,95245.0,0.102]
[1763361001585,0.323,95246.0,95245.0,0.139499]
[1763361001790,0.323,95246.0,95245.0,0.159679]
[1763361002432,0.03156703,95259.0,95245.0,0.159679]
[1763361002661,0.323,95259.0,95258.0,0.11519881]
[1763361002970,0.03156494,95264.0,95258.0,0.11519881]
[1763361003163,0.323,95267.0,95259.0,0.01314888]
[1763361003372,0.04326494,95265.0,95258.0,0.11519881]
[1763361003530,0.01604,95259.0,95258.0,0.10510881]
[1763361003934,0.0117,95260.0,95258.0,0.10510881]
[1763361004562,0.02520321,95220.0,95209.0,0.01204]
[1763361004766,0.02520321,95220.0,95208.0,0.01009]
[1763361004767,0.323,95218.0,95213.0,0.10510881]
[1763361005517,0.08416,95217.0,95213.0,0.10510881]
[1763361005679,0.08416,95217.0,95213.0,0.10522995]
[1763361006986,0.08416,95217.0,95213.0,0.10622995]
[1763361007762,0.08416,95217.0,95213.0,0.10522995]
[1763361007963,0.00802,95219.0,95213.0,0.10522995]
[1763361008144,0.00802,95219.0,95213.0,0.10622995]
[1763361008914,0.0567831,95220.0,95213.0,0.10622995]
[1763361009294,0.0567831,95220.0,95213.0,0.10722995]
[1763361009485,0.0567831,95220.0,95213.0,0.10622995]
[1763361009817,0.0567831,95220.0,95213.0,0.10722995]
[1763361010219,0.0567831,95220.0,95213.0,0.10622995]
[1763361010423,0.0567831,95220.0,95213.0,0.10522995]
[1763361010624,0.0567831,95220.0,95213.0,0.20622995]
[1763361010856,0.0567831,95220.0,95213.0,0.20722995]
[1763361013737,0.02466,95219.0,95213.0,0.20722995]
[1763361014293,0.0567831,95220.0,95213.0,0.20722995]
[1763361014544,0.0567831,95220.0,95213.0,0.20622995]
[1763361015146,0.14280316,95263.0,95213.0,0.20622995]
[1763361015147,0.02520321,95230.0,95219.0,0.02833]
[1763361015347,0.3270914,95230.0,95229.0,0.10510881]
[1763361015552,0.0842,95230.0,95229.0,0.10510881]
[1763361016812,0.0842,95230.0,95229.0,0.20510881]
[1763361017007,0.0842,95230.0,95229.0,0.20610881]
[1763361017588,0.0842,95230.0,95229.0,0.20710881]
[1763361017793,0.44738,95230.0,95229.0,0.20710881]
[1763361017989,0.49642155,95230.0,95229.0,0.20710881]
[1763361019875,0.44738,95230.0,95229.0,0.20710881]
[1763361020074,0.4072,95230.0,95229.0,0.20710881]
[1763361020276,0.323,95230.0,95229.0,0.20710881]
[1763361020484,0.323,95230.0,95229.0,0.22320881]
[1763361020717,0.323,95230.0,95229.0,0.20710881]
[1763361022834,0.39978155,95230.0,95229.0,0.102]
[1763361022997,0.39978155,95230.0,95229.0,0.002]
[1763361023827,0.39978155,95230.0,95229.0,0.001]
[1763361024396,0.323,95229.0,95219.0,0.1]
[1763361024631,0.01625,95220.0,95219.0,0.1]
[1763361024980,0.04018,95220.0,95219.0,0.1]
[1763361025183,0.07176119,95220.0,95219.0,0.1]
[1763361025381,0.15596119,95220.0,95219.0,0.1]
[1763361025705,0.39476119,95220.0,95219.0,0.1]
[1763361025925,0.43423731,95220.0,95219.0,0.1]
[1763361026309,0.43423731,95220.0,95219.0,0.101]
[1763361026916,0.43423731,95220.0,95219.0,0.102]
[1763361027466,0.43423731,95220.0,95219.0,0.101]
[1763361027866,0.43423731,95220.0,95219.0,0.1]
[1763361028062,0.43423731,95220.0,95219.0,0.101]
[1763361028303,0.43423731,95220.0,95219.0,0.102]
[1763361028579,0.43423731,95220.0,95219.0,0.101]
[1763361028765,0.43423731,95220.0,95219.0,0.102]
[1763361034686,0.39476119,95220.0,95219.0,0.102]
[1763361035673,0.56316119,95220.0,95219.0,0.102]
[1763361039353,0.37083119,95220.0,95219.0,0.102]
[1763361039470,0.33709139,95230.0,95219.0,0.1414]
[1763361039674,0.3270914,95230.0,95229.0,0.13227881]
[1763361039899,0.323,95230.0,95229.0,0.13227881]
[1763361040964,0.323,95230.0,95229.0,0.21717881]
[1763361041109,0.323,95230.0,95229.0,0.21617881]
[1763361041493,0.323,95230.0,95229.0,0.21817881]
[1763361042337,0.323,95230.0,95229.0,0.20710881]
[1763361042647,0.323,95230.0,95229.0,0.102]
[1763361042648,0.40103059,95230.0,95229.0,0.102]
[1763361042940,0.40103059,95230.0,95229.0,0.002]
[1763361043497,0.40103059,95230.0,95229.0,0.001]
[1763361043874,0.40103059,95230.0,95224.0,0.1]
[1763361043875,0.323,95229.0,95224.0,0.1]
[1763361044080,0.01625,95225.0,95224.0,0.1]
[1763361044230,0.00999999,95220.0,95214.0,0.1]
[1763361044432,0.02223,95215.0,95214.0,0.1]
[1763361044836,0.04616,95215.0,95214.0,0.1]
[1763361045162,0.02520321,95220.0,95214.0,0.1]